Cogmind - Beta 16 @@@ ROGUE MODE // 2025.11.15 @ 15:00:43 Player: tthaar Result: Destroyed by B-75 Beast with Heavy Plasma Cannon Performance ------------- Evolutions (3) 1500 Regions Visited (6) 1200 Robots Destroyed (74) 370 Value Destroyed (2424) 2424 Prototype IDs (4) 80 Alien Tech Used (0) 0 Bonus (0) 0 TOTAL SCORE: 5574 Bonus ------- None Cogmind --------- Core Integrity 0/700 Matter 300/450 Energy 100/100 System Corruption 1% Temperature Cool (12) Movement Core (100) Ox1 Location -7/Lower Caves Parts ------- > --- POWER (2) -------- (None) > --- PROPULSION (4) --- (None) > --- UTILITY (4) ------ Large Matter Pod Utility Shielding > --- WEAPON (3) ------- (None) > --- INVENTORY (5) ---- Minigun Peak State ------------ > --- POWER ------------ Light Nuclear Core Light Angular Momentum Engine > --- PROPULSION ------- Aluminum Leg Aluminum Leg Carbon-fiber Leg Titanium Leg > --- UTILITY ---------- Small Storage Unit Kinecellerator Hardlight Generator System Shield > --- WEAPON ----------- Heavy Laser Gauss Rifle Great Maul > --- INVENTORY -------- Aluminum Leg Large Matter Pod Improved Sensor Array Improved Sensor Array Power Shielding Utility Shielding Light EM Pulse Cannon [Rating: 39] Favorites ----------- Power Light Nuclear Core Engine Light Angular Momentum Engine Power Core Light Nuclear Core Propulsion Aluminum Leg Treads Light Treads Leg Aluminum Leg Wheel Compact Wheel Flight Unit Improved Flight Unit Utility Small Storage Unit Device Hardlight Generator Storage Small Storage Unit Hackware System Shield Protection Power Shielding Weapon Great Maul Energy Gun Beam Rifle Energy Cannon Plasma Cannon Ballistic Gun Gauss Rifle Launcher Rocket Launcher Impact Weapon Great Maul Piercing Weapon Spear Build | -11 -10 -9 -8 -7 -7 -7 ------- Run | Yrd Mat Mat Mat Fac Low Low Slots Evolved 6 | . . 2 2 2 . . Power 1 | . . . . 1 . . Propulsion 2 | . . 2 . . . . Utility 2 | . . . 2 . . . Weapon 1 | . . . . 1 . . Parts Attached 79 | 5 2 24 24 14 4 6 Power 9 | 1 . 2 1 3 2 . Engine 5 | 1 . 2 1 1 . . Core 4 | . . . . 2 2 . Reactor . | . . . . . . . Propulsion 32 | 2 . 12 10 4 1 3 Treads 3 | . . . 1 . . 2 Leg 25 | 2 . 10 7 4 1 1 Wheel 3 | . . 1 2 . . . Hover . | . . . . . . . Flight 1 | . . 1 . . . . Utility 17 | 1 2 1 8 3 . 2 Device 5 | . . . 2 2 . 1 Storage 3 | 1 2 . . . . . Processor . | . . . . . . . Hackware 1 | . . . 1 . . . Protection 8 | . . 1 5 1 . 1 Artifact . | . . . . . . . Weapon 21 | 1 . 9 5 4 1 1 Energy Gun 6 | . . 4 1 1 . . Energy Cannon 5 | . . 1 2 2 . . Ballistic Gun 6 | 1 . 2 1 . 1 1 Ballistic Cannon . | . . . . . . . Launcher 2 | . . 2 . . . . Special Weapon . | . . . . . . . Impact Weapon 1 | . . . 1 . . . Slashing Weapon . | . . . . . . . Piercing Weapon 1 | . . . . 1 . . Special Melee Weapon . | . . . . . . . Unidentified Prototypes 2 | . . 2 . . . . Parts Lost 51 | . . 8 11 10 3 19 Power 7 | . . 1 1 1 1 3 Propulsion 23 | . . 4 7 5 1 6 Utility 10 | . . . 2 3 . 5 Weapon 11 | . . 3 1 1 1 5 Highest Loss Streak 15 | . . 5 8 7 2 15 To Critical Strikes . | . . . . . . . Average Backups 6 | 4 7 7 7 6 6 4 Power . | 1 1 1 1 . . . Propulsion . | 2 2 . . . . . Utility 2 | . . 1 2 4 3 2 Weapon 2 | 1 3 2 3 1 3 2 Tool/Special . | . . . . . . . Unused Backups 12 | . 5 4 3 . . . Power 4 | . 1 1 2 . . . Propulsion 6 | . 4 2 . . . . Utility . | . . . . . . . Weapon 2 | . . 1 1 . . . Tool/Special . | . . . . . . . Average Slot Usage (%) 89 | . 79 93 90 91 83 86 Engine 7 | . 14 10 8 6 4 . Core 4 | . . . . 6 10 13 Treads 1 | . . . 1 . . 9 Leg 26 | . 28 34 24 27 22 14 Wheel 1 | . . 5 2 . . . Device 2 | . . . 2 7 . 4 Storage 9 | . 22 11 9 7 7 7 Hackware 4 | . . . 3 7 7 6 Protection 9 | . . 10 18 3 7 6 Energy Gun 5 | . . 10 10 3 . . Energy Cannon 2 | . . . 1 2 7 6 Ballistic Gun 5 | . 14 6 . 7 6 6 Impact Weapon 2 | . . . 5 6 . . Piercing Weapon 1 | . . . . . 7 6 Peak Build Rating 39 | 5 6 13 31 39 35 33 Average Rating 23 | 4 5 11 25 33 33 29 On Entrance 17 | . 5 6 13 30 34 33 Avg Prop Armor Cover (%) 6 | . . 2 7 . . 11 Naked Turns . | . . . . . . . Heaviest Build 46 | 12 15 20 37 46 42 42 Greatest Support 57 | 20 20 43 50 57 42 35 Greatest Overweight (x) 7 | 1 . 3 7 1 1 5 Average Overweight (x) . | . . . . . . 1 Largest Inventory Capacity 25 | 8 25 8 8 8 8 8 Average Capacity 8 | 7 8 8 8 8 8 7 Most Carried 8 | 7 8 8 8 8 8 8 Average Carried 6 | 5 7 7 7 6 6 4 Final Capacity 8 | 8 8 8 8 8 8 5 Final Carried 7 | 7 7 7 7 7 7 1 Class Distribution -------------------- 67% | Scavenger-Mutant 32% | Mutant Dominant Class ---------------- Mutant | -10/Materials Mutant | -9/Materials Scavenger-Mutant | -8/Materials Scavenger-Mutant | -7/Factory Scavenger-Mutant | -7/Lower Caves Scavenger-Mutant | -7/Lower Caves Resources | -11 -10 -9 -8 -7 -7 -7 ----------- Run | Yrd Mat Mat Mat Fac Low Low Matter Collected 1824 | 211 138 689 277 322 94 93 Remotely . | . . . . . . . Salvage Created 2962 | . 222 858 1264 351 209 58 Parts 140 | . 8 56 39 21 13 3 Haulers Intercepted 1 | . . 1 . . . . Recyclers Shooed 3 | . . 2 1 . . . Parts Field Recycled . | . . . . . . . Retrieved Matter . | . . . . . . . Parts Self-Destructed 20 | . . . . . 14 6 Prevented 1 | . . . . . 1 . Parts Restored . | . . . . . . . Kills | -11 -10 -9 -8 -7 -7 -7 ------- Run | Yrd Mat Mat Mat Fac Low Low Combat Hostiles Destroyed 58 | . 4 21 21 6 4 2 Melee 9 | . . . 7 1 1 . Guns 32 | . 4 17 5 4 . 2 Cannons 3 | . . . . . 3 . AOE 3 | . . 3 . . . . Classes Destroyed 12 | . 2 6 3 1 . . Worker 5 | . . 1 . 4 . . Builder 2 | . . 2 . . . . Tunneler 1 | . . . . 1 . . Hauler 1 | . . 1 . . . . Recycler 4 | . 1 1 2 . . . Operator 1 | . . . 1 . . . Watcher 2 | . . 2 . . . . Swarmer 10 | . . 7 . . 1 2 Grunt 32 | . 4 9 15 3 1 . Duelist 1 | . . . 1 . . . Sentry 10 | . . 5 3 1 1 . Hunter 5 | . . . 2 2 1 . Best Kill Streak 8 | . 2 8 7 4 3 2 Combat Bots Only 7 | . 2 7 7 3 3 2 Max Kills in Single Turn 2 | . 1 2 1 1 1 1 Gunslinging 1 | . . 1 . . . . Exploded 1 | . . 1 . . . . Melee 1 | . . . 1 1 1 . Uniques/NPCs Destroyed . | . . . . . . . Combat | -11 -10 -9 -8 -7 -7 -7 -------- Run | Yrd Mat Mat Mat Fac Low Low Hostile Shots Fired 680 | . 21 127 198 150 64 120 Missed 189 | . 8 31 49 57 16 28 Hits 491 | . 13 96 149 93 48 92 Melee 4 | . . . 4 . . . Projectile 487 | . 13 96 145 93 48 92 AOE 1 | . . . . 1 . . Critical Strikes 10 | . . . 7 1 . 2 Actively Blocked 1 | . . . 1 . . . Damage Taken 6813 | . 160 1143 2210 1225 641 1434 Core 1478 | . 64 220 470 252 37 435 Absorbed by Shields 92 | . . . . 92 . . Redirected to Shielding 149 | . . 22 107 2 . 18 Ignored by Resistances 77 | . . . 77 . . . Regen/Repaired (Parts) 110 | . . . 110 . . . Core Remaining (%) 58 | 100 74 45 14 . . . Volleys Fired 236 | . 28 80 55 40 10 23 Largest 2 | . 1 2 2 2 2 2 Hottest 125 | . 20 106 125 88 108 105 Shots Fired 344 | . 28 130 71 57 20 38 Gun 286 | . 28 122 58 45 10 23 Cannon 50 | . . . 13 12 10 15 Launcher 8 | . . 8 . . . . Special . | . . . . . . . Kinetic 163 | . 28 61 1 40 10 23 Thermal 155 | . . 61 57 12 10 15 Explosive 8 | . . 8 . . . . Electromagnetic 18 | . . . 13 5 . . Robot Hit Streak 16 | . 4 16 7 7 6 2 Robot Miss Streak 6 | . 2 6 3 5 3 3 Penetration Max . | . . . . . . . Secondary Targets 2 | . . 2 . . . . Max Gunslinging Chain 1 | . . 1 . . . . Shots Hit Robots 228 | . 12 78 73 31 19 15 Core Hits 106 | 1 11 44 20 15 7 8 Critical Kills 2 | . . 1 1 . . . Critical Parts Destroyed 9 | . . . 7 2 . . Critical Strikes 18 | . . 3 10 3 1 1 Burn 4 | . . 2 2 . . . Destroy 2 | . . 1 . . . 1 Corrupt 1 | . . . . 1 . . Smash 10 | . . . 8 2 . . Impale 1 | . . . . . 1 . Melee Attacks 46 | . . . 31 3 11 1 Impact 34 | . . . 31 3 . . Slashing . | . . . . . . . Piercing 12 | . . . . . 11 1 Sneak Attacks 1 | . . . . 1 . . Combat Hostiles . | . . . . . . . Follow-up Attacks . | . . . . . . . Damage Inflicted 5847 | 3 172 1910 2101 805 442 414 Guns 2715 | . 172 1019 713 489 92 230 Cannons 698 | . . . 230 140 158 170 Explosions 919 | . . 882 37 . . . Melee 1489 | . . . 1121 176 192 . Ramming 26 | 3 . 9 . . . 14 Kinetic 1477 | . 172 538 . 445 92 230 Thermal 1699 | . . 481 750 140 158 170 Explosive 882 | . . 882 . . . . Electromagnetic 274 | . . . 230 44 . . Impact 1297 | . . . 1121 176 . . Slashing . | . . . . . . . Piercing 192 | . . . . . 192 . Highest Corruption 1 | . . . . 1 1 1 Average Corruption 1 | . . . . 1 1 1 Corruption Purged . | . . . . . . . Corruption Blocked . | . . . . . . . Effects 15 | . . . . 3 6 6 Message Errors 5 | . . . . 1 3 1 Matter Fused 5 | . . . . . 2 3 Heat Flow Errors 1 | . . . . . 1 . Parts Rejected 1 | . . . . 1 . . Data Loss (minor) 2 | . . . . 1 . 1 Misfires 1 | . . . . . . 1 Overload Shots . | . . . . . . . Overflow Damage 578 | . . 23 396 152 7 . Projectiles 7 | . . . . . 7 . Explosions 23 | . . 23 . . . . Melee 548 | . . . 396 152 . . Knockbacks 5 | . . . 5 . . . Impact 5 | . . . 5 . . . Kinetic . | . . . . . . . Secondary . | . . . . . . . Self-Inflicted Damage 54 | . . 49 . . . 5 Shots 2 | . . 2 . . . . Rammed 10 | . . 1 . . . 9 Targets Rammed 13 | 1 . 3 . . . 9 Kicked 3 | 1 . 2 . . . . Crushed . | . . . . . . . Highest Temperature 813 | . . 204 396 245 353 813 Average Temperature 135 | . . 48 150 98 148 340 Received Heat Transfer 2282 | . 90 312 1107 274 45 454 Effects 39 | . . . 9 . 3 27 Shutdowns 7 | . . . 1 . . 6 Energy Bleed 9 | . . . 4 . 1 4 Interference 7 | . . . 2 . 2 3 Matter Decay 6 | . . . 1 . . 5 Short Circuit 2 | . . . . . . 2 Damage (minor) 1 | . . . 1 . . . Damage (major) 6 | . . . . . . 6 Damage (core) 1 | . . . . . . 1 Siege Activations . | . . . . . . . Martial Activations . | . . . . . . . Shielding Activations . | . . . . . . . Robots Disrupted . | . . . . . . . Combat Hostiles . | . . . . . . . Robots Corrupted 9 | . . . 8 1 . . Combat Hostiles 9 | . . . 8 1 . . Parts Fried 16 | . . . 14 2 . . Impact Corruptions 17 | . . . 14 3 . . Robots Melted 2 | . . 1 1 . . . Combat Hostiles 2 | . . 1 1 . . . Parts Melted 6 | . . 5 1 . . . Heat Transferred 3893 | . . 1406 1665 222 300 300 Parts Sabotaged . | . . . . . . . Parts Stolen . | . . . . . . . Parts Stripped . | . . . . . . . Power Chain Reactions 1 | . . . 1 . . . Alert | -11 -10 -9 -8 -7 -7 -7 ------- Run | Yrd Mat Mat Mat Fac Low Low Maximum Alert Level 1 | . . 1 . . . . Low Security (%) 92 | 100 100 71 100 100 . . Level 1 7 | . . 28 . . . . Level 2 . | . . . . . . . Level 3 . | . . . . . . . Level 4 . | . . . . . . . Level 5 . | . . . . . . . High Security . | . . . . . . . Max Security . | . . . . . . . Peak Influence 253 | . 50 253 163 67 . . Initial 94 | . . 14 94 67 . . Average 69 | . 11 120 104 10 . . Influence Increases 1777 | . 114 701 630 202 90 40 Destroy 0b10 Robot/C 1160 | . 80 420 420 120 80 40 Destroy 0b10 Robot/NC 80 | . 5 35 15 25 . . Destroy Leader 266 | . 20 96 100 40 10 . Successful Hack 31 | . 9 5 17 . . . Disable Machine 30 | . . 15 . 15 . . Destroy Structure 60 | . . 55 3 2 . . Lose Combat Pursuer 150 | . . 75 75 . . . Influence Decreases 1777 | . 79 511 705 352 90 40 Entered New Map 235 | . . 21 131 83 . . Time Decay 1256 | . 79 410 464 193 80 30 Lost Part 286 | . . 80 110 76 10 10 Squads Dispatched 8 | . 1 1 3 3 . . Investigation 1 | . 1 . . . . . Extermination 1 | . . . . 1 . . Reinforcement 6 | . . 1 3 2 . . Assault . | . . . . . . . Garrison . | . . . . . . . Intercept . | . . . . . . . Searches Triggered . | . . . . . . . Construction Impeded 1 | . . . . 1 . . Haulers Reinforced . | . . . . . . . Active Scanning Responses . | . . . . . . . Cargo Convoy Interrupts . | . . . . . . . Stealth | -11 -10 -9 -8 -7 -7 -7 --------- Run | Yrd Mat Mat Mat Fac Low Low Distress Signals 3 | . . 2 1 . . . Communications Jammed . | . . . . . . . Distress Signals . | . . . . . . . Times Spotted 90 | . 6 35 32 8 4 5 Peak Tracking Total 7 | . 3 7 7 4 3 4 Tactical Retreats 7 | . . 3 4 . . . Traps | -11 -10 -9 -8 -7 -7 -7 ------- Run | Yrd Mat Mat Mat Fac Low Low Traps Triggered 3 | . 1 1 . 1 . . Indirectly . | . . . . . . . Trap Hack Attempts . | . . . . . . . Triggered . | . . . . . . . Disarmed . | . . . . . . . Reprogrammed . | . . . . . . . Reused . | . . . . . . . Traps Extracted . | . . . . . . . Installed . | . . . . . . . Triggered . | . . . . . . . Machines | -11 -10 -9 -8 -7 -7 -7 ---------- Run | Yrd Mat Mat Mat Fac Low Low Machines Disabled 2 | . . 1 . 1 . . Max in Single Turn 1 | . . 1 . 1 . . Machines Repaired . | . . . . . . . Machines Dismantled . | . . . . . . . Machines Sabotaged . | . . . . . . . Overloaded Fab Kills . | . . . . . . . Hacking | -11 -10 -9 -8 -7 -7 -7 --------- Run | Yrd Mat Mat Mat Fac Low Low Machines Accessed 20 | . 5 6 4 5 . . Terminals 14 | . 3 5 3 3 . . Fabricators 2 | . . . . 2 . . Repair Stations 1 | . . . 1 . . . Recycling Units 3 | . 2 1 . . . . Scanalyzers . | . . . . . . . Garrison Access . | . . . . . . . Total Hacks 56 | . 13 16 13 14 . . Successful 31 | . 6 10 9 6 . . Failed 24 | . 7 5 4 8 . . Catastrophic 5 | . . 3 . 2 . . Database Lockouts 1 | . . 1 . . . . Manual 1 | . . . . 1 . . Terminals 43 | . 9 14 9 11 . . Fabricators 3 | . . . . 3 . . Repair Stations 4 | . . . 4 . . . Recycling Units 6 | . 4 2 . . . . Scanalyzers . | . . . . . . . Garrison Access . | . . . . . . . Terminal Hacks 23 | . 4 9 6 4 . . Record 12 | . 3 7 1 1 . . Prototype ID Bank 1 | . . 1 . . . . Open DSF 1 | . . . . 1 . . Branch Access Points 1 | . 1 . . . . . Emergency Access Points 1 | . . . 1 . . . Alert Level 2 | . . . 2 . . . Locate Traps 1 | . . . . 1 . . Maintenance Status 1 | . . . 1 . . . Surveillance Status 1 | . . . 1 . . . Extermination Status 1 | . . . . 1 . . Zone Layout 1 | . . 1 . . . . Fabricator Hacks 2 | . . . . 2 . . Network Status 1 | . . . . 1 . . Build 1 | . . . . 1 . . Repair Station Hacks 3 | . . . 3 . . . Scan Component 2 | . . . 2 . . . Repair 1 | . . . 1 . . . Recycling Unit Hacks 3 | . 2 1 . . . . Report Inventory 3 | . 2 1 . . . . Scanalyzer . | . . . . . . . Garrison Access Hacks . | . . . . . . . Unauthorized Hacks . | . . . . . . . Terminals . | . . . . . . . Fabricators . | . . . . . . . Repair Stations . | . . . . . . . Recycling Units . | . . . . . . . Scanalyzers . | . . . . . . . Garrison Access . | . . . . . . . Data Cores Recovered 1 | . . . 1 . . . Used . | . . . . . . . Hacking Detections 15 | . 3 5 3 4 . . Full Trace Events 1 | . . . 1 . . . Feedback Events . | . . . . . . . Feedback Blocked . | . . . . . . . Robot Schematics Acquired . | . . . . . . . Robots Built . | . . . . . . . Authchips . | . . . . . . . Time . | . . . . . . . Total Robot Build Rating . | . . . . . . . Part Schematics Acquired . | . . . . . . . Parts Built 2 | . . . . 2 . . Authchips . | . . . . . . . Time 84 | . . . . 84 . . Total Part Build Rating 8 | . . . . 8 . . Part Studies Acquired . | . . . . . . . Parts Repaired 1 | . . . 1 . . . Time 53 | . . . 53 . . . Parts Recycled . | . . . . . . . Recycled Matter . | . . . . . . . Retrieved Matter . | . . . . . . . Retrieved Components . | . . . . . . . Parts Scanalyzed . | . . . . . . . Part Schematics Acquired . | . . . . . . . Parts Damaged . | . . . . . . . Bothacking | -11 -10 -9 -8 -7 -7 -7 ------------ Run | Yrd Mat Mat Mat Fac Low Low Used RIF Installer . | . . . . . . . Robots Hacked . | . . . . . . . Non-combat . | . . . . . . . Combat . | . . . . . . . Robot Hacks Applied . | . . . . . . . Relay Couplers Released . | . . . . . . . Fabnet Peak Effective % . | . . . . . . . Robots Rewired . | . . . . . . . Allies Hacked . | . . . . . . . Hacks Repelled . | . . . . . . . Allies | -11 -10 -9 -8 -7 -7 -7 -------- Run | Yrd Mat Mat Mat Fac Low Low Total Allies . | . . . . . . . Largest Group . | . . . . . . . Highest-Rated Group . | . . . . . . . Highest-Rated Ally . | . . . . . . . Total Orders . | . . . . . . . Ally Attacks . | . . . . . . . Total Damage . | . . . . . . . Kills . | . . . . . . . Allies Corrupted . | . . . . . . . Allies Melted . | . . . . . . . Intel | -11 -10 -9 -8 -7 -7 -7 ------- Run | Yrd Mat Mat Mat Fac Low Low Active Infowar (turns) 514 | . . . . 155 . 359 Sensors 514 | . . . . 155 . 359 Robot Analysis Total . | . . . . . . . Derelict Logs Recovered 1 | . . . . . . 1 Drone Launches . | . . . . . . . Drone Recoveries . | . . . . . . . Exploration | -11 -10 -9 -8 -7 -7 -7 ------------- Run | Yrd Mat Mat Mat Fac Low Low Turns Passed 4934 | 184 318 1014 1172 1062 642 542 Spaces Moved 2788 | 144 200 552 602 656 406 228 Core 33 | 12 . . 9 . . 12 Treads . | . . . . . . . Legs 2753 | 132 200 550 593 656 406 216 Wheels . | . . . . . . . Hover . | . . . . . . . Flight 2 | . . 2 . . . . Fastest Speed 50 | 50 120 120 120 120 123 120 Average Speed 139 | 115 120 124 143 139 142 195 Slowest Speed 400 | 120 120 260 400 193 190 330 Overloaded Moves . | . . . . . . . Propulsion Burnouts . | . . . . . . . Robots Hopped . | . . . . . . . Potential Cave-ins . | . . . . . . . Cave-ins Triggered . | . . . . . . . Exploration Rate (%) 30 | 6 28 38 42 16 53 27 Regions Visited 6 Branch Regions 2 Pre-discovered Areas . | . . . . . . . Known Exits Taken . | . . . . . . . Unknown Exits Taken 6 | 1 1 1 1 1 1 . Scrap Searched 3 | . . . . . 2 1 Spaces Dug . | . . . . . . . Terrain Destroyed 66 | . . 64 2 . . . Melee . | . . . . . . . Projectile . | . . . . . . . AOE 66 | . . 64 2 . . . Terrain Rammed . | . . . . . . . Walls Destroyed . | . . . . . . . Machines Disabled . | . . . . . . . Actions | -11 -10 -9 -8 -7 -7 -7 --------- Run | Yrd Mat Mat Mat Fac Low Low Total 3398 | 161 253 749 774 742 433 286 Wait 75 | . 4 40 19 2 . 10 Move 2782 | 143 199 551 601 655 405 228 Hop . | . . . . . . . Pick Up 101 | 12 10 28 27 17 3 4 Fast Attach . | . . . . . . . Attach 64 | 5 1 16 16 13 3 10 Detach 2 | . . 2 . . . . Swap 38 | . 2 15 13 6 1 1 Drop 41 | . 9 14 12 6 . . Fire 236 | . 28 80 55 40 10 23 Melee 46 | . . . 31 3 11 1 Ram 10 | . . 1 . . . 9 Kick 3 | 1 . 2 . . . . Crush . | . . . . . . . Escape Stasis . | . . . . . . . Rewire . | . . . . . . . Trap . | . . . . . . . Miscellaneous . | . . . . . . . Route ------- -11/Scrapyard -10/Materials (discovered 2 exits: *Mat / Min) -9/Materials -8/Materials -7/Factory (discovered 3 exits: [*Fac] / [*Sto] / [*Low]) -7/Lower Caves -7/Lower Caves History --------- Turn | Location | Event 11 | -11/Scrapyard | Discovered new exit (range 15) 185 | -11/Scrapyard | Entered Materials 323 | -10/Materials | Build established: Mutant 366 | -10/Materials | Identified exit to Mines 427 | -10/Materials | Discovered new exit (range 15) 503 | -10/Materials | Entered another Materials area 503 | -9/Materials | Evolved 2 slots: Propulsion x2 650 | -9/Materials | Central database locked down 1088 | -9/Materials | Destroyed 7 combat bots 1094 | -9/Materials | Lost 5 parts (3n2w) 1316 | -9/Materials | Discovered new exit (range 16) 1460 | -9/Materials | Core integrity fell below 50% 1517 | -9/Materials | Entered another Materials area 1517 | -8/Materials | Evolved 2 slots: Utility x2 1710 | -8/Materials | Core integrity fell below 50% 1737 | -8/Materials | Lost 8 parts (1p4n2u1w) 1751 | -8/Materials | Destroyed 7 combat bots 2065 | -8/Materials | Build established: Scavenger-Mutant 2167 | -8/Materials | Repaired Broken Great Maul? 2635 | -8/Materials | Core integrity fell below 20% 2684 | -8/Materials | Discovered new exit (range 3) 2689 | -8/Materials | Entered Factory 2689 | -7/Factory | Evolved 2 slots: Power x1, Weapon x1 2843 | -7/Factory | Discovered new exit (range 7) 2991 | -7/Factory | Discovered new exit (range 15) 3184 | -7/Factory | Fabricated Coolant Injector (x2) 3366 | -7/Factory | Lost 7 parts (1p3n2u1w) 3516 | -7/Factory | Discovered new exit (range 5) 3751 | -7/Factory | Entered Lower Caves 4144 | -7/Lower Caves | Attracted the attention of an 0b10 checkpoint 4382 | -7/Lower Caves | Discovered new exit (range 7) 4393 | -7/Lower Caves | Entered another Lower Caves area 4394 | -7/Lower Caves | Encountered a Warlord checkpoint 4497 | -7/Lower Caves | Lost 3 allies 4506 | -7/Lower Caves | Lost 4 parts (1p2n1u) 4703 | -7/Lower Caves | Spotted B-75 Beast 4869 | -7/Lower Caves | Core integrity fell below 50% 4919 | -7/Lower Caves | Core integrity fell below 20% 4935 | -7/Lower Caves | Destroyed by B-75 Beast with Heavy Plasma Cannon Last Messages --------------- Lgt. EM Pulse Cannon destroyed. Overheating: Lgt. Nuclear Core damaged (-2). Overheating: Carbon-fiber Leg damaged (-9). Overheating: Sml. Storage Unit damaged (-30). Overheating: Energy bleed (-16). Carbon-fiber Leg destroyed. B-75 Beast suffers critical hit (Destroy). Power failure, Lgt. Nuclear Core shutdown. Overheating: System interference. Assault Rifle temporarily disabled. Acquired 5 matter. Knocked back. Lgt. Nuclear Core destroyed. Assault Rifle destroyed. Spear destroyed. Knocked back. Slammed into B-75 Beast. Sml. Storage Unit destroyed. Slammed into B-75 Beast. [Achievement: 5k Club] Map ----- +----------------------------------------------------+ | ??????????????????????????????? ?????????????? | | ??????????????????????????????# ?????????????? | | ?????????????????????????????? ###???????????? | | ??????????????????????????????# #????? ?????? | | ??????????????????????????????# ?? ?? #?????? | | ??????????????????????????????# ?? ? ?#????? | | ??????????????????????????????? ??? ? #????? | | ??????????????????????????????? ?? # # ?????? | | ??????????????????????????????? ??? ??????? | | ???????????????????????????????# ??? # ##?????? | | ????????????????????????####??## ???" #?????? | | ??????????????????? ## ### ???""# ??????? | | ??????????????????# ##?#"" #???????? | | ?????????????????? # ##"" #????????? | | ??????????????????????# "; #????????? | | ?????????????????????????### ## ###??????? | | ???????????????????????????## # #??????? | | ????????????????????????????## # #??????? | | ????????????????????????????## #### #??????? | | ????????????????????????????# ##??# #?????## | | ????????????????????????????# % ##??## ##???? # | | ??????????????????????????### ##### ##??? | | ????????????###############;; ## #### | | ????????????#"""## ;;##;# ## ## ? | | ????????????#"" " BB ;## ## #? | | ????????????# !% % $ @BB % #### ## #? | | ????????????#"!"[ ;;%;;;; ##??### ## ## | | ????????????# ""#;" ;## ;# #?????## # | | ????????????#### ;#;; ; #??????## | | ???????????????## ##; #???????## | | ????????????????## #?# #????????# | | ?????????????????## ##?# #????????# | | ?????????????????## ;"#?# #????????### # | | ?????????????????# ## ## #????? ### # | | ?????????????????#### ## ### ### #?## # | | ????????????????????## ##"" #?# # | | ????????????????????#" ? ## | | ????????????????????## #???? ## | | ?????????????????????######## #????##### | | ????????????????????????????? ###????????### | | ????????????????????????????? #????????????# | | ??????????????????????????????? ##????????????# | | ???????????????????????????????? ###?????????????# | | ???????????????????????????????? #???????????????# | | ?????????????????????????????????#???????????????# | | ?????????????????????????????????????????????????? | | ?????????????????????????????????????????????????? | | ?????????????????????????????????????????????????? | | ?????????????????????????????????????????????????? | | ?????????????????????????????????????????????????? | +----------------------------------------------------+ Best States ------------- Heat Dissipation 50 Energy Generation 27 Energy Capacity 265 Matter Stores 300 Matter Capacity 450 Sight Range 16 Robot Scan Range 15 Terrain Scan Density 10 Armor Coverage 600 Resistance: KI 20 Power Shielding 33 Utility Shielding 33 Weapon Shielding 66 Evasion (%) 55 Kinecelleration 30 Defensive Hacking 10 Item Schematics ----------------- None Robot Schematics ------------------ None Fabricated ------------ Coolant Injector | x2 | -7/Factory | Preloaded Repaired ---------- Great Maul | 15% | -8/Materials | Broken Studied --------- None Alien Tech Used ----------------- None Achievements -------------- 5k Club Just What I Needed Let's See Who's Tougher Librarian Loot Pinata Made in Tau Ceti IV Novice Programmer Power Corrupts Resistances Are Futile That Tickles There's More Where That Came From Challenges ------------ None Game ------ Seed ShrapnelInsulationLance Manual? 0 Play Time 02:20:51 Cumulative 5.0 hours Start 2025.11.14 @ 22:06:49 End 2025.11.15 @ 15:00:43 Sessions 9 Manual Loads 0 Difficulty Rogue Special Mode None Game No. 5 Rogue 5 Adventurer 0 Explorer 0 Win Type - Total 0 Types 0/0/0/0/0/0/0/0/0/0 Lore% 1 Gallery% 5 Achievement% 6 Wizard Run 0 Options --------- Layout 1 ASCII 0 Keyboard 0 Movement Mouse Keybinds 0 Fullscreen 1 Font 48/Smallcaps Map View 50x35 Zoom Use 0% Tactical HUD 0 Map Filters NONE Filters NONE Steam 1 RUN: cd705419-d3d0-4522-838b-263c1a9426a5